Cogmind - Beta 11.1 @@@ ROGUE MODE // 2022.09.19 @ 23:48:36 Player: DuckBoy Result: Destroyed by P-70 Sage with Tesla Rifle Performance ------------- Evolutions (5) 2500 Regions Visited (14) 2800 Robots Destroyed (205) 1025 Value Destroyed (8112) 8112 Prototype IDs (20) 400 Alien Tech Used (0) 0 Bonus (3060) 3060 TOTAL SCORE: 17897 Bonus ------- High Alert Combat Kills 2375 Follower Combat Kills 829 Met Data Miner 300 Friendly Fire -444 Cogmind --------- Core Integrity 0/1000 Matter 245/300 Energy 30/100 System Corruption 7% Temperature Cool (0) Movement Walking (260) Ox2 Location -5/Factory Parts ------- > --- POWER (1) -------- (None) > --- PROPULSION (4) --- Carbon-fiber Leg > --- UTILITY (9) ------ Large Storage Unit Advanced Signal Interpreter Improved Target Analyzer Improved Target Analyzer Particle Charger Hacking Suite Hacking Suite System Shield > --- WEAPON (3) ------- Heavy Plasma Cannon > --- INVENTORY (15) --- Light Angular Momentum Engine Micro Fission Core Improved Sensor Array Force Rifle Advanced Assault Cannon Peak State ------------ > --- POWER ------------ Light Angular Momentum Engine > --- PROPULSION ------- Gravmag System Combat Airjet Gravmag Array > --- UTILITY ---------- Large Storage Unit Advanced Sensor Array Advanced Signal Interpreter Improved Target Analyzer Improved Target Analyzer Light Regenerative Plating Hacking Suite System Shield Dynamic Insulation System > --- WEAPON ----------- Precision Assault Rifle Precision Assault Rifle Enhanced Gauss Cannon > --- INVENTORY -------- Light Angular Momentum Engine Improved Sensor Array Hacking Suite Force Rifle Force Rifle Force Rifle Force Rifle Heavy Plasma Cannon Heavy Plasma Cannon Precision Assault Rifle Advanced Assault Cannon Bore Cannon Enhanced Gauss Cannon [Rating: 83] Favorites ----------- Power Cooled Ion Engine Engine Cooled Ion Engine Power Core Micro Fission Core Propulsion Light Treads Treads Light Treads Leg Carbon-fiber Leg Wheel Armored Huge Wheel Hover Unit Gravmag Array Flight Unit VTOL Module Utility Huge Storage Unit Device Kinecellerator Storage Huge Storage Unit Processor Improved Target Analyzer Hackware Hacking Suite Protection Improved Medium Armor Plating Weapon Bore Cannon Energy Gun Beam Rifle Energy Cannon Phase Cannon Ballistic Gun Heavy Assault Rifle Ballistic Cannon Bore Cannon Launcher Mini Grenade Launcher Special Weapon Enhanced Flamer Build | -11 -10 -9 -9 -8 -7 -7 -7 -7 -7 -7 -6 -6 -6 -5 ------- Run | Scr Mat Mat Min Mat Fac Was Fac Low Low Dat Pro Fac Ext Fac Slots Evolved 10 | . . 2 . 2 2 . . . . . . 2 . 2 Power . | . . . . . . . . . . . . . . . Propulsion 2 | . . . . 1 . . . . . . . 1 . . Utility 7 | . . 1 . 1 2 . . . . . . 1 . 2 Weapon 1 | . . 1 . . . . . . . . . . . . Parts Attached 223 | 7 3 11 5 18 2 11 . 1 3 . 13 84 5 60 Power 15 | 1 . 2 . 1 . . . . . . . 7 . 4 Engine 13 | 1 . 2 . 1 . . . . . . . 7 . 2 Core 2 | . . . . . . . . . . . . . . 2 Reactor . | . . . . . . . . . . . . . . . Propulsion 53 | 2 . 3 1 9 . 1 . . . . 1 19 1 16 Treads 23 | 2 . 3 1 7 . 1 . . . . 1 8 . . Leg 13 | . . . . . . . . . . . . 4 . 9 Wheel 7 | . . . . . . . . . . . . 7 . . Hover 6 | . . . . . . . . . . . . . . 6 Flight 4 | . . . . 2 . . . . . . . . 1 1 Utility 83 | 2 2 2 2 3 2 4 . 1 2 . 5 36 3 19 Device 24 | 1 . . . 1 . 2 . . . . . 14 . 6 Storage 5 | 1 2 . . . . . . . . . . 1 . 1 Processor 11 | . . . . . . . . . . . . 6 . 5 Hackware 3 | . . . . . . . . . . . . . . 3 Protection 40 | . . 2 2 2 2 2 . 1 2 . 5 15 3 4 Artifact . | . . . . . . . . . . . . . . . Weapon 72 | 2 1 4 2 5 . 6 . . 1 . 7 22 1 21 Energy Gun 8 | . . 2 . . . . . . . . . 1 . 5 Energy Cannon 11 | . . . . . . . . . . . . 6 . 5 Ballistic Gun 24 | 2 1 1 1 4 . 1 . . . . 3 6 . 5 Ballistic Cannon 18 | . . . . . . 3 . . . . 3 5 1 6 Launcher 10 | . . 1 . 1 . 2 . . 1 . 1 4 . . Special Weapon 1 | . . . 1 . . . . . . . . . . . Impact Weapon . | . . . . . . . . . . . . . . . Slashing Weapon . | . . . . . . . . . . . . . . . Piercing Weapon . | . . . . . . . . . . . . . . . Special Melee Weapon . | . . . . . . . . . . . . . . . Unidentified Prototypes 9 | . . . . 3 . 1 . . . . . 2 . 3 Parts Lost 91 | . . 4 3 2 . . . . 1 . 5 44 6 26 Power 5 | . . 2 . . . . . . . . . 1 . 2 Propulsion 22 | . . 1 1 . . . . . . . . 9 1 10 Utility 35 | . . . 2 1 . . . . 1 . 2 21 2 6 Weapon 29 | . . 1 . 1 . . . . . . 3 13 3 8 Highest Loss Streak 7 | . . 2 3 1 . . . . 1 . 1 6 3 7 To Critical Strikes 1 | . . 1 . . . . . . . . . . . . Average Slot Usage (%) 87 | . 99 92 99 99 98 92 92 92 87 92 88 73 77 79 Engine 7 | . 14 7 11 9 7 7 7 7 7 7 7 5 6 2 Treads 15 | . 28 21 21 26 23 15 15 15 15 15 14 10 . . Wheel 1 | . . . . . . . . . . . . 5 9 1 Device 8 | . 14 11 11 17 15 7 7 7 7 7 4 6 . 2 Storage 7 | . 13 11 11 9 7 7 7 7 7 7 7 5 6 5 Processor 4 | . . . . . . . . . . . . 7 26 23 Protection 16 | . . 10 11 9 21 29 30 30 25 30 31 12 9 4 Energy Gun 1 | . . 3 8 . . . . . . . . 1 . 2 Ballistic Gun 9 | . 27 22 13 23 23 7 . . . . 4 4 9 6 Ballistic Cannon 7 | . . . . . . 10 23 23 17 15 15 4 1 2 Launcher 1 | . . 3 7 1 . 3 . . 4 7 . . . . Naked Turns 6 | . . . . . . . . . . . . 6 . . Heaviest Build 168 | 13 88 98 102 107 119 140 140 143 143 142 145 168 50 60 Greatest Support 112 | 40 40 43 43 62 62 90 90 90 90 90 90 112 56 65 Greatest Overweight (x) 13 | . 2 2 2 2 1 1 1 1 1 1 1 8 1 13 Average Overweight (x) . | . 1 2 2 1 1 1 1 1 1 1 1 . . . Largest Inventory Capacity 25 | 8 25 25 25 25 25 25 25 25 25 25 25 25 10 15 Average Capacity 21 | 5 23 25 25 25 25 25 25 25 25 25 25 16 10 14 Most Carried 25 | . 3 25 25 25 25 25 25 25 25 25 25 21 10 15 Average Carried 16 | . 2 12 24 24 25 24 25 25 24 25 23 10 10 10 Final Capacity 25 | 8 25 25 25 25 25 25 25 25 25 25 25 10 10 15 Final Carried 25 | . 3 25 25 25 25 25 25 25 25 25 22 10 10 5 Class Distribution -------------------- 25% | Mutant 21% | Scavenger-Mutant 15% | Tank 13% | Scavenger-Gunner 11% | Scavenger-Tank 3% | Derelict-Mutant 3% | Derelict-Tank Dominant Class ---------------- Mutant | -10/Materials Scavenger-Tank | -9/Materials Scavenger-Mutant | -9/Mines Scavenger-Gunner | -8/Materials Scavenger-Tank | -7/Factory Tank | -7/Waste Tank | -7/Factory Tank | -7/Lower Caves Mutant | -7/Lower Caves Mutant | -7/Data Miner Derelict-Mutant | -6/Proximity Caves Scavenger-Mutant | -6/Factory Scavenger-Gunner | -6/Extension Hacker-Mutant | -5/Factory Resources | -11 -10 -9 -9 -8 -7 -7 -7 -7 -7 -7 -6 -6 -6 -5 ----------- Run | Scr Mat Mat Min Mat Fac Was Fac Low Low Dat Pro Fac Ext Fac Matter Collected 7042 | 243 114 570 122 386 . 314 60 88 351 . 732 2688 178 1196 Remotely . | . . . . . . . . . . . . . . . Salvage Created 10167 | 78 287 838 92 568 . 1372 . 61 539 . 590 3855 218 1669 Parts 408 | 3 14 64 3 31 . 7 . 1 20 . 21 172 11 61 Haulers Intercepted 7 | . 1 2 . 2 . . . . . . . 2 . . Recyclers Shooed 14 | . . . . . . . . . . . . 9 1 4 Parts Field Recycled . | . . . . . . . . . . . . . . . Retrieved Matter . | . . . . . . . . . . . . . . . Parts Self-Destructed 45 | . . . . . . . . 3 18 . 24 . . . Prevented 1 | . . . . . . . . . 1 . . . . . Kills | -11 -10 -9 -9 -8 -7 -7 -7 -7 -7 -7 -6 -6 -6 -5 ------- Run | Scr Mat Mat Min Mat Fac Was Fac Low Low Dat Pro Fac Ext Fac Combat Hostiles Destroyed 166 | . 4 16 8 8 . 6 . 1 15 . 11 70 3 24 Melee 4 | . . . . . . . . . 1 . . 3 . . Guns 59 | . 2 16 5 8 . 1 . . . . 2 14 2 9 Cannons 59 | . . . 2 . . . . 1 7 . 7 26 1 15 AOE 38 | . 2 . . . . 5 . . 7 . 2 22 . . Classes Destroyed 18 | 2 3 5 1 . . 1 . . 3 . . 3 . . Worker 6 | . . 1 . 1 . . . . . . . 4 . . Builder 14 | . . 2 . . . . . . . . . 11 . 1 Tunneler 1 | 1 . . . . . . . . . . . . . . Hauler 7 | . 1 2 . 2 . . . . . . . 2 . . Recycler 10 | 1 1 . . . . . . . . . . 6 . 2 Operator 5 | . 1 1 . 1 . . . . . . . . 1 1 Watcher 8 | . . 3 . 1 . . . . . . . 2 . 2 Swarmer 24 | . . 4 . . . . . . 3 . 2 15 . . Cutter 2 | . . . . . . . . . . . . 2 . . Grunt 76 | . 4 7 2 5 . . . . 8 . 4 32 . 14 Brawler 8 | . . . . . . . . . 2 . 2 2 . 2 Duelist 6 | . . . . . . . . . 1 . 2 3 . . Sentry 19 | . . 5 . 3 . . . 1 1 . 1 5 3 . Hunter 10 | . . . . . . . . . . . . 7 . 3 Programmer 9 | . . . . . . . . . . . . 4 . 5 Compactor 6 | . . . . . . 6 . . . . . . . . Assembled 5 | . . . 5 . . . . . . . . . . . Surgeon 1 | . . . . . . . . . 1 . . . . . Thug 1 | . . . . . . . . . 1 . . . . . Best Kill Streak 13 | 2 3 4 2 3 . 3 . 1 8 . 3 13 3 8 Combat Bots Only 8 | . 2 4 2 3 . 3 . 1 8 . 3 6 2 8 Max Kills in Single Turn 5 | 1 2 2 1 2 . 1 . 1 3 . 2 5 1 2 Gunslinging 1 | . . 1 . 1 . . . . . . . . . . Exploded 4 | . 2 . . . . 1 . . 3 . 2 4 . . Melee 1 | . . . . . . . . . 1 . . 1 . . Uniques/NPCs Destroyed 1 | . . . 1 . . . . . . . . . . . YI-UF0 (-9/Mines) Combat | -11 -10 -9 -9 -8 -7 -7 -7 -7 -7 -7 -6 -6 -6 -5 -------- Run | Scr Mat Mat Min Mat Fac Was Fac Low Low Dat Pro Fac Ext Fac Damage Taken 19397 | . 383 792 646 441 . 84 . 33 1317 . 1211 9262 921 4307 Core 2391 | . 241 102 98 14 . 20 . . 67 . 95 632 119 1003 Absorbed by Shields 258 | . . . . . . . . . . . . 208 50 . Redirected to Shielding 67 | . . . . . . 5 . 11 51 . . . . . Regen/Repaired (Parts) 240 | . . 157 . . . . . . . . . . . 83 Core Remaining (%) 55 | 100 3 . 50 97 . . . . . . 74 . 11 . Volleys Fired 633 | 9 13 55 16 26 . 18 . 1 41 . 33 295 12 114 Largest 3 | 2 2 3 3 3 . 3 . 3 3 . 3 3 3 3 Hottest 230 | 40 40 106 156 71 . 78 . 171 171 . 171 207 170 230 Shots Fired 1207 | 18 26 136 42 68 . 40 . 3 53 . 75 511 32 203 Gun 689 | 18 26 135 31 68 . 23 . . . . 40 204 20 124 Cannon 445 | . . . . . . . . 3 44 . 32 275 12 79 Launcher 62 | . . 1 . . . 17 . . 9 . 3 32 . . Special 11 | . . . 11 . . . . . . . . . . . Kinetic 909 | 18 26 127 24 68 . 23 . 3 44 . 72 346 21 137 Thermal 206 | . . 8 18 . . . . . . . . 114 11 55 Explosive 36 | . . 1 . . . 17 . . 9 . 3 6 . . Electromagnetic 56 | . . . . . . . . . . . . 45 . 11 Robot Hit Streak 21 | 5 5 16 18 10 . 7 . . 6 . 11 15 12 21 Robot Miss Streak 7 | 1 2 3 4 3 . 4 . 3 6 . 7 7 3 4 Penetration Max 1 | . . . . . . . . 1 1 . 1 1 . 1 Secondary Targets 6 | . 1 4 . 1 . . . . . . . . . . Max Gunslinging Chain 1 | . 1 1 . 1 . . . . . . . . . . Shots Hit Robots 701 | 12 17 90 23 50 . 26 . . 20 . 46 260 21 136 Core Hits 403 | 3 9 40 14 27 . 15 . 2 34 . 24 169 7 59 Critical Kills 31 | . . 1 . . . 1 . 1 8 . 5 9 . 6 Critical Parts Destroyed 32 | . . . . . . . . 1 8 . 8 7 2 6 Critical Strikes 93 | . . 1 2 . . 2 . 2 17 . 14 26 2 27 Burn 3 | . . . 2 . . . . . . . . 1 . . Meltdown 1 | . . . . . . . . . . . . 1 . . Destroy 65 | . . 1 . . . 2 . 2 17 . 14 15 2 12 Blast 24 | . . . . . . . . . . . . 9 . 15 Melee Attacks . | . . . . . . . . . . . . . . . Impact . | . . . . . . . . . . . . . . . Slashing . | . . . . . . . . . . . . . . . Piercing . | . . . . . . . . . . . . . . . Sneak Attacks . | . . . . . . . . . . . . . . . Combat Hostiles . | . . . . . . . . . . . . . . . Follow-up Attacks . | . . . . . . . . . . . . . . . Damage Inflicted 24442 | 144 388 1351 330 904 . 2132 . 71 1639 . 1298 11884 552 3749 Guns 8095 | 144 234 1254 271 904 . 364 . . . . 455 2355 275 1839 Cannons 7145 | . . . . . . . . 71 553 . 575 3763 277 1906 Explosions 9068 | . 154 97 . . . 1768 . . 1064 . 257 5728 . . Melee . | . . . . . . . . . . . . . . . Ramming 75 | . . . . . . . . . 22 . 11 38 . 4 Kinetic 11957 | 144 234 1152 211 904 . 364 . 71 553 . 1030 4375 275 2644 Thermal 4901 | . 154 102 119 . . . . . . . . 3281 277 968 Explosive 5159 | . . 97 . . . 1768 . . 1064 . 257 1973 . . Electromagnetic 2350 | . . . . . . . . . . . . 2217 . 133 Impact . | . . . . . . . . . . . . . . . Slashing . | . . . . . . . . . . . . . . . Piercing . | . . . . . . . . . . . . . . . Highest Corruption 7 | . . 1 1 . . . 6 6 6 6 6 4 5 7 Average Corruption 4 | . . 1 1 . . . 5 6 6 6 6 3 4 2 Corruption Purged . | . . . . . . . . . . . . . . . Corruption Blocked . | . . . . . . . . . . . . . . . Effects 229 | . . 4 5 . . . 3 36 32 5 62 65 10 7 Message Errors 58 | . . . 1 . . . 3 9 4 1 15 20 4 1 Matter Fused 47 | . . 2 2 . . . . 11 12 2 8 8 2 . Heat Flow Errors 24 | . . 1 1 . . . . 3 1 1 8 7 1 1 Energy Discharges 24 | . . . . . . . . 4 2 . 7 8 2 1 Parts Rejected 7 | . . . . . . . . . 1 . 2 3 . 1 Data Loss (minor) 31 | . . 1 . . . . . 7 7 1 9 6 . . Data Loss (major) 15 | . . . . . . . . 2 2 . 4 6 . 1 Misfires 9 | . . . . . . . . . 2 . 5 2 . . Alerts 7 | . . . 1 . . . . . 1 . 2 2 . 1 Weapon Failures 7 | . . . . . . . . . . . 2 3 1 1 Overload Shots . | . . . . . . . . . . . . . . . Overflow Damage 532 | . 52 . . . . . . . 10 . . 358 1 111 Projectiles 180 | . . . . . . . . . . . . 68 1 111 Explosions 347 | . 52 . . . . . . . 10 . . 285 . . Melee 5 | . . . . . . . . . . . . 5 . . Knockbacks 64 | . . . . . . . . . 8 . 6 39 . 11 Impact 1 | . . . . . . . . . 1 . . . . . Kinetic 61 | . . . . . . . . . 7 . 6 37 . 11 Secondary 2 | . . . . . . . . . . . . 2 . . Self-Inflicted Damage 1115 | . 245 25 . . . 68 . . 52 . 36 689 . . Shots 26 | . 3 1 . . . 4 . . 2 . 1 15 . . Rammed 8 | . . . . . . . . . 3 . 3 2 . . Targets Rammed 14 | . . . . . . . . . 4 . 3 6 . 1 Kicked 1 | . . . . . . . . . . . . . . 1 Crushed 5 | . . . . . . . . . 1 . . 4 . . Highest Temperature 545 | . 20 250 342 45 . 24 . 236 342 268 420 477 350 545 Average Temperature 142 | . 8 25 115 17 . 11 . 86 160 141 167 144 92 205 Received Heat Transfer 5232 | . 93 315 101 225 . 9 . 18 504 . 234 2214 231 1288 Effects 49 | . . . 2 . . . . . 5 . 7 27 . 8 Shutdowns 5 | . . . . . . . . . . . 1 3 . 1 Energy Bleed 10 | . . . . . . . . . 2 . 3 3 . 2 Interference 15 | . . . 1 . . . . . 3 . 2 9 . . Matter Decay 3 | . . . . . . . . . . . . 2 . 1 Short Circuit 8 | . . . 1 . . . . . . . . 4 . 3 Damage (minor) 4 | . . . . . . . . . . . 1 2 . 1 Damage (major) 4 | . . . . . . . . . . . . 4 . . Siege Activations . | . . . . . . . . . . . . . . . Robots Corrupted 3 | . . . . . . . . . . . . 3 . . Combat Hostiles 3 | . . . . . . . . . . . . 3 . . Parts Fried 6 | . . . . . . . . . . . . 6 . . Impact Corruptions 1 | . . . . . . . . . . . . 1 . . Robots Melted 3 | . . . 1 . . . . . . . . 2 . . Combat Hostiles 3 | . . . 1 . . . . . . . . 2 . . Parts Melted 10 | . . . 1 . . . . . . . . 6 2 1 Heat Transferred 6865 | . 100 259 868 . . . . . . . . 3791 333 1514 Parts Sabotaged . | . . . . . . . . . . . . . . . Parts Stolen . | . . . . . . . . . . . . . . . Parts Stripped . | . . . . . . . . . . . . . . . Power Chain Reactions 5 | . . . . . . . . . . . . 5 . . Missiles Intercepted . | . . . . . . . . . . . . . . . Alert | -11 -10 -9 -9 -8 -7 -7 -7 -7 -7 -7 -6 -6 -6 -5 ------- Run | Scr Mat Mat Min Mat Fac Was Fac Low Low Dat Pro Fac Ext Fac Peak Influence 2642 | 10 278 267 50 126 34 51 120 . . . . 2642 1730 1049 Initial 1294 | . 6 72 25 19 6 11 . . . . . 56 1294 746 Average 521 | 3 39 68 12 36 15 18 76 . . . . 1106 1457 840 Maximum Alert Level 5 | . 1 1 . . . . . . . . . 5 5 3 Low Security (%) 58 | 100 95 89 100 100 100 100 100 . . . . 23 . . Level 1 4 | . 4 10 . . . . . . . . . 8 . . Level 2 2 | . . . . . . . . . . . . 1 . 17 Level 3 16 | . . . . . . . . . . . . 22 . 82 Level 4 6 | . . . . . . . . . . . . 11 93 . Level 5 10 | . . . . . . . . . . . . 32 6 . High Security . | . . . . . . . . . . . . . . . Max Security . | . . . . . . . . . . . . . . . Squads Dispatched 64 | . 1 3 1 3 . . 3 . 1 . 1 36 4 11 Investigation 19 | . . 1 1 2 . . 1 . . . . 9 2 3 Extermination 8 | . . . . . . . 1 . . . . 4 . 3 Reinforcement 17 | . 1 2 . 1 . . 1 . . . . 10 1 1 Assault 15 | . . . . . . . . . 1 . 1 8 1 4 Garrison 5 | . . . . . . . . . . . . 5 . . Intercept . | . . . . . . . . . . . . . . . Searches Triggered . | . . . . . . . . . . . . . . . Data Miner Redirects 18 | . . . . . . . . . . . . 12 2 4 Construction Impeded 6 | . . . . . . . . . . . . 5 . 1 Haulers Reinforced 2 | . . . . . . . . . . . . 2 . . Active Scanning Responses . | . . . . . . . . . . . . . . . Cargo Convoy Interrupts . | . . . . . . . . . . . . . . . Stealth | -11 -10 -9 -9 -8 -7 -7 -7 -7 -7 -7 -6 -6 -6 -5 --------- Run | Scr Mat Mat Min Mat Fac Was Fac Low Low Dat Pro Fac Ext Fac Distress Signals 10 | . 1 2 1 1 . . . . . . . . 4 1 Communications Jammed . | . . . . . . . . . . . . . . . Distress Signals . | . . . . . . . . . . . . . . . Times Spotted 310 | . 14 31 10 15 . 6 2 6 21 . 13 107 37 48 Peak Tracking Total 14 | . 3 4 3 2 . 4 2 5 9 . 5 8 14 8 Tactical Retreats 27 | . 1 . 1 1 . . . . 5 . 2 9 2 6 Traps | -11 -10 -9 -9 -8 -7 -7 -7 -7 -7 -7 -6 -6 -6 -5 ------- Run | Scr Mat Mat Min Mat Fac Was Fac Low Low Dat Pro Fac Ext Fac Traps Triggered 16 | . 1 . . 1 1 . 3 . . . . 4 1 5 Indirectly 2 | . . . . . . . . . . . . 2 . . Trap Hack Attempts . | . . . . . . . . . . . . . . . Triggered . | . . . . . . . . . . . . . . . Disarmed . | . . . . . . . . . . . . . . . Reprogrammed . | . . . . . . . . . . . . . . . Reused . | . . . . . . . . . . . . . . . Traps Extracted . | . . . . . . . . . . . . . . . Installed . | . . . . . . . . . . . . . . . Triggered 1 | . . . . . . . . . 1 . . . . . Machines | -11 -10 -9 -9 -8 -7 -7 -7 -7 -7 -7 -6 -6 -6 -5 ---------- Run | Scr Mat Mat Min Mat Fac Was Fac Low Low Dat Pro Fac Ext Fac Machines Disabled 43 | . 3 . . . . . . 1 1 . 1 33 3 1 Max in Single Turn 4 | . 3 . . . . . . . 1 . 1 4 . 1 Garrison Access 3 | . . . . . . . . . . . . 3 . . Energy Cycler 1 | . . . . . . . . . . . . . 1 . Machines Sabotaged . | . . . . . . . . . . . . . . . Garrisons Compromised . | . . . . . . . . . . . . . . . Overloaded Fab Kills . | . . . . . . . . . . . . . . . Hacking | -11 -10 -9 -9 -8 -7 -7 -7 -7 -7 -7 -6 -6 -6 -5 --------- Run | Scr Mat Mat Min Mat Fac Was Fac Low Low Dat Pro Fac Ext Fac Machines Accessed 47 | . 3 7 1 4 2 . 1 . 1 4 . 14 2 8 Terminals 26 | . 3 5 . 3 . . 1 . . . . 7 2 5 Fabricators 7 | . . . . . 1 . . . . . . 4 . 2 Repair Stations 2 | . . 1 . . . . . . . . . 1 . . Recycling Units 1 | . . . . . 1 . . . . . . . . . Scanalyzers 3 | . . 1 . 1 . . . . . . . . . 1 Garrison Access 2 | . . . . . . . . . . . . 2 . . Total Hacks 154 | . 10 38 1 12 3 . 3 . 1 29 . 35 6 16 Successful 82 | . 5 23 1 5 2 . 1 . 1 29 . 5 2 8 Failed 72 | . 5 15 . 7 1 . 2 . . . . 30 4 8 Catastrophic 18 | . . 2 . 1 . . 2 . . . . 9 1 3 Database Lockouts . | . . . . . . . . . . . . . . . Manual 49 | . 9 12 . 5 2 . 3 . . . . 8 3 7 Terminals 66 | . 10 14 . 9 . . 3 . . . . 15 6 9 Fabricators 18 | . . . . . 1 . . . . . . 13 . 4 Repair Stations 7 | . . 6 . . . . . . . . . 1 . . Recycling Units 2 | . . . . . 2 . . . . . . . . . Scanalyzers 24 | . . 18 . 3 . . . . . . . . . 3 Garrison Access 6 | . . . . . . . . . . . . 6 . . Terminal Hacks 42 | . 3 1 1 2 . . 1 . 1 29 . 1 1 2 Record 11 | . . . . . . . . . . 11 . . . . Part Schematic 12 | . . . . . . . . . . 11 . 1 . . Robot Schematic 4 | . . . . . . . . . . 4 . . . . Prototype ID Bank 3 | . . . . . . . . . . 3 . . . . Open Door 3 | . . . 1 . . . . . 1 . . . 1 . Level Access Points 1 | . . . . 1 . . . . . . . . . . Branch Access Points 1 | . 1 . . . . . . . . . . . . . Terminal Index 1 | . 1 . . . . . . . . . . . . . Unreport Threat 4 | . 1 1 . 1 . . 1 . . . . . . . Dispatch Records 1 | . . . . . . . . . . . . . . 1 Zone Layout 1 | . . . . . . . . . . . . . . 1 Fabricator Hacks 7 | . . . . . . . . . . . . 3 . 4 Load Schematic 5 | . . . . . . . . . . . . 3 . 2 Build 2 | . . . . . . . . . . . . . . 2 Repair Station Hacks 5 | . . 5 . . . . . . . . . . . . Scan Component 3 | . . 3 . . . . . . . . . . . . Repair 2 | . . 2 . . . . . . . . . . . . Recycling Unit Hacks . | . . . . . . . . . . . . . . . Scanalyzer 20 | . . 17 . 2 . . . . . . . . . 1 Insert Component 9 | . . 7 . 1 . . . . . . . . . 1 Analyze 11 | . . 10 . 1 . . . . . . . . . . Garrison Access Hacks . | . . . . . . . . . . . . . . . Unauthorized Hacks 8 | . 2 . . 1 2 . . . . . . 1 1 1 Terminals 5 | . 2 . . 1 . . . . . . . . 1 1 Botnet 5 | . 2 . . 1 . . . . . . . . 1 1 Fabricators . | . . . . . . . . . . . . . . . Repair Stations . | . . . . . . . . . . . . . . . Recycling Units 2 | . . . . . 2 . . . . . . . . . Recyclers 1 | . . . . . 1 . . . . . . . . . Mask 1 | . . . . . 1 . . . . . . . . . Scanalyzers . | . . . . . . . . . . . . . . . Garrison Access 1 | . . . . . . . . . . . . 1 . . Jam 1 | . . . . . . . . . . . . 1 . . Data Cores Recovered 2 | . 1 . . . . . . . . . . . . 1 Used . | . . . . . . . . . . . . . . . Hacking Detections 40 | . 3 6 . 4 2 . 1 . . . . 14 2 8 Full Trace Events 17 | . . 2 . 2 . . 1 . . . . 7 2 3 Feedback Events 4 | . . 1 . . . . 1 . . . . 1 1 . Corruption 4 | . . 1 . . . . 1 . . . . 1 1 . Feedback Blocked . | . . . . . . . . . . . . . . . Robot Schematics Acquired 4 | . . . . . . . . . . 4 . . . . Robots Built . | . . . . . . . . . . . . . . . Authchips . | . . . . . . . . . . . . . . . Time . | . . . . . . . . . . . . . . . Total Robot Build Rating . | . . . . . . . . . . . . . . . Part Schematics Acquired 20 | . . 7 . 1 . . . . . 11 . 1 . . Parts Built 1 | . . . . . . . . . . . . . . 1 Authchips . | . . . . . . . . . . . . . . . Time 269 | . . . . . . . . . . . . . . 269 Total Part Build Rating 5 | . . . . . . . . . . . . . . 5 Parts Repaired 2 | . . 2 . . . . . . . . . . . . Time 52 | . . 52 . . . . . . . . . . . . Parts Recycled . | . . . . . . . . . . . . . . . Recycled Matter . | . . . . . . . . . . . . . . . Retrieved Matter . | . . . . . . . . . . . . . . . Retrieved Components . | . . . . . . . . . . . . . . . Parts Scanalyzed 9 | . . 7 . 1 . . . . . . . . . 1 Part Schematics Acquired 8 | . . 7 . 1 . . . . . . . . . . Parts Damaged . | . . . . . . . . . . . . . . . Bothacking | -11 -10 -9 -9 -8 -7 -7 -7 -7 -7 -7 -6 -6 -6 -5 ------------ Run | Scr Mat Mat Min Mat Fac Was Fac Low Low Dat Pro Fac Ext Fac Used RIF Installer . | . . . . . . . . . . . . . . . Robots Hacked . | . . . . . . . . . . . . . . . Non-combat . | . . . . . . . . . . . . . . . Combat . | . . . . . . . . . . . . . . . Robot Hacks Applied . | . . . . . . . . . . . . . . . Relay Couplers Released 2 | . . . . . . . . . . . . 2 . . Machine Destruction 2 | . . . . . . . . . . . . 2 . . Fabnet Peak Effective % . | . . . . . . . . . . . . . . . Robots Rewired 11 | . . . . . . . . 1 1 . 1 . 8 . Allies Hacked . | . . . . . . . . . . . . . . . Hacks Repelled . | . . . . . . . . . . . . . . . Allies | -11 -10 -9 -9 -8 -7 -7 -7 -7 -7 -7 -6 -6 -6 -5 -------- Run | Scr Mat Mat Min Mat Fac Was Fac Low Low Dat Pro Fac Ext Fac Total Allies 32 | . . . . . . 19 . 1 1 . 2 . 9 . Largest Group 18 | . . . . . . 18 18 14 11 1 2 . 6 . Highest-Rated Group 434 | . . . . . . 434 434 378 314 16 112 . 305 . Highest-Rated Ally 159 | . . . . . . 35 35 35 35 16 96 . 159 . Total Orders . | . . . . . . . . . . . . . . . Ally Attacks 287 | . . . . . . 40 56 48 38 . 27 . 78 . Total Damage 5680 | . . . . . . 712 571 1479 842 . 604 . 1472 . Kills 33 | . . . . . . . 4 7 4 . 2 . 16 . Allies Corrupted 1 | . . . . . . . . . 1 . . . . . Allies Melted . | . . . . . . . . . . . . . . . Intel | -11 -10 -9 -9 -8 -7 -7 -7 -7 -7 -7 -6 -6 -6 -5 ------- Run | Scr Mat Mat Min Mat Fac Was Fac Low Low Dat Pro Fac Ext Fac Robot Analysis Total . | . . . . . . . . . . . . . . . Derelict Logs Recovered 4 | . . . 1 . . . . 1 1 . 1 . . . Drone Launches . | . . . . . . . . . . . . . . . Drone Recoveries . | . . . . . . . . . . . . . . . Exploration | -11 -10 -9 -9 -8 -7 -7 -7 -7 -7 -7 -6 -6 -6 -5 ------------- Run | Scr Mat Mat Min Mat Fac Was Fac Low Low Dat Pro Fac Ext Fac Turns Passed 18302 | 92 903 2440 986 1458 154 761 253 1387 999 228 2431 4173 453 1584 Spaces Moved 7398 | 34 286 659 278 546 64 280 104 559 358 94 934 2000 271 931 Core 31 | 4 . . . . . . . . . . . 26 . 1 Treads 4753 | 30 286 659 278 546 64 280 104 559 358 94 934 561 . . Legs 355 | . . . . . . . . . . . . 163 . 192 Wheels 1724 | . . . . . . . . . . . . 1250 271 203 Hover 535 | . . . . . . . . . . . . . . 535 Flight . | . . . . . . . . . . . . . . . Fastest Speed 50 | 50 160 320 320 235 238 238 245 245 245 245 240 50 100 58 Average Speed 207 | 147 295 320 320 237 238 244 245 245 245 245 244 148 106 110 Slowest Speed 800 | 160 320 320 320 317 238 245 245 245 245 245 245 800 115 700 Overloaded Moves . | . . . . . . . . . . . . . . . Propulsion Burnouts . | . . . . . . . . . . . . . . . Robots Hopped . | . . . . . . . . . . . . . . . Cave-ins Triggered . | . . . . . . . . . . . . . . . Exploration Rate (%) 49 | 4 47 64 61 39 2 96 3 79 64 75 95 53 43 18 Regions Visited 14 Branch Regions 6 Pre-discovered Areas 3 | . . . 1 . . . . . . 1 1 . . . Known Exits Taken 3 | . . . . 1 . . . . . . . 1 1 . Unknown Exits Taken 9 | 1 1 1 1 . . . 1 1 1 1 1 . . . Scrap Searched 9 | . . . . . . . . 2 4 . 3 . . . Spaces Dug 6 | . . . . . . . . . . . 1 5 . . Terrain Destroyed 533 | . 53 11 . . . 65 . . 77 . 40 264 4 19 Melee . | . . . . . . . . . . . . . . . Projectile 133 | . . . . . . . . . 24 . 11 75 4 19 AOE 400 | . 53 11 . . . 65 . . 53 . 29 189 . . Terrain Rammed . | . . . . . . . . . . . . . . . Walls Destroyed . | . . . . . . . . . . . . . . . Machines Disabled . | . . . . . . . . . . . . . . . Actions | -11 -10 -9 -9 -8 -7 -7 -7 -7 -7 -7 -6 -6 -6 -5 --------- Run | Scr Mat Mat Min Mat Fac Was Fac Low Low Dat Pro Fac Ext Fac Total 9275 | 55 318 880 334 654 70 331 103 576 426 93 1009 2727 409 1290 Wait 704 | 6 13 121 29 40 . 1 . 9 16 . 7 290 20 152 Move 7385 | 33 285 658 277 545 64 279 103 558 357 93 933 1999 270 931 Hop . | . . . . . . . . . . . . . . . Pick Up 82 | . 3 28 5 8 2 5 . . 2 . 3 15 . 11 Fast Attach 122 | 7 1 7 . 4 2 7 . . 2 . 5 49 4 34 Attach 61 | . 1 2 3 4 . 1 . . . . 5 24 . 21 Detach 8 | . . . . . . 1 . . . . 1 1 . 5 Swap 40 | . 1 2 2 10 . 3 . 1 1 . 3 11 1 5 Drop 94 | . 1 7 2 17 2 16 . 1 2 . 3 26 1 16 Fire 633 | 9 13 55 16 26 . 18 . 1 41 . 33 295 12 114 Melee . | . . . . . . . . . . . . . . . Ram . | . . . . . . . . . . . . . . . Kick 1 | . . . . . . . . . . . . . . 1 Crush 13 | . . . . . . . . . 4 . 3 6 . . Escape Stasis 16 | . . . . . . . . . . . . 8 8 . Rewire 116 | . . . . . . . . 6 1 . 13 3 93 . Trap . | . . . . . . . . . . . . . . . Miscellaneous . | . . . . . . . . . . . . . . . Route ------- -11/Scrapyard -10/Materials (discovered 2 exits: *Mat / *Min) -9/Materials (discovered 2 exits: *Mat / *Min) -9/Mines (discovered 2 exits: *Mat x2) -8/Materials (discovered 3 exits: *Fac x3) -7/Factory -7/Waste -7/Factory -7/Lower Caves -7/Lower Caves (discovered 2 exits: *Fac / *Dat) -7/Data Miner -6/Proximity Caves -6/Factory (discovered 3 exits: *Fac / Low / *Ext) -6/Extension -5/Factory History --------- Turn | Location | Event 5 | -11/Scrapyard | Discovered new exit (range 14) 93 | -11/Scrapyard | Entered Materials 132 | -10/Materials | Identified exit to Mines 310 | -10/Materials | Build established: Mutant 354 | -10/Materials | Discovered new exit (range 15) 854 | -10/Materials | Core integrity fell below 50% 854 | -10/Materials | Core integrity fell below 20% 996 | -10/Materials | Entered another Materials area 996 | -9/Materials | Evolved 2 slots: Utility x1, Weapon x1 1423 | -9/Materials | Build established: Scavenger-Tank 2242 | -9/Materials | Build established: Mutant 2420 | -9/Materials | Discovered new exit (range 3) 2572 | -9/Materials | Repaired Lgt. Armor Plating 2600 | -9/Materials | Repaired Lgt. Treads 2958 | -9/Materials | Build established: Scavenger-Tank 3272 | -9/Materials | Discovered new exit (range 8) 3436 | -9/Materials | Entered Mines 3484 | -9/Mines | Build established: Scavenger-Mutant 3520 | -9/Mines | A weapon hastily lodged in a ceiling crevice suddenly fell to the ground 4008 | -9/Mines | Assembled infested the area 4010 | -9/Mines | Learned location of Zion (-6) 4106 | -9/Mines | Destroyed YI-UF0 4130 | -9/Mines | Lost 3 parts (1n2u) 4164 | -9/Mines | Discovered new exit (range 16) 4312 | -9/Mines | Discovered new exit (range 9) 4355 | -9/Mines | Met a Derelict shopkeep closing up shop 4422 | -9/Mines | Entered Materials 4422 | -8/Materials | Evolved 2 slots: Propulsion x1, Utility x1 4878 | -8/Materials | Discovered new exit (range 4) 5256 | -8/Materials | Identified exit to Factory 5330 | -8/Materials | Build established: Scavenger-Gunner 5880 | -8/Materials | Entered Factory 5880 | -7/Factory | Evolved 2 slots: Utility x2 6034 | -7/Factory | Sucked down chute 6034 | -7/Factory | Entered Waste 6035 | -7/Waste | Met a frightened Derelict 6045 | -7/Waste | Spotted C-40 Crusher 6047 | -7/Waste | Spotted C-40 Crusher 6049 | -7/Waste | Spotted C-40 Crusher 6060 | -7/Waste | Destroyed C-40 Crusher 6063 | -7/Waste | Destroyed C-40 Crusher 6067 | -7/Waste | Destroyed C-40 Crusher 6067 | -7/Waste | Spotted C-40 Crusher 6096 | -7/Waste | Destroyed C-40 Crusher 6197 | -7/Waste | Spotted C-40 Crusher 6204 | -7/Waste | Destroyed C-40 Crusher 6224 | -7/Waste | Spotted C-40 Crusher 6229 | -7/Waste | Found Damper Plating 6248 | -7/Waste | Destroyed C-40 Crusher 6327 | -7/Waste | Warlord forces began an assault 6361 | -7/Waste | Build established: Tank 6693 | -7/Waste | Discovered new exit (range 12) 6795 | -7/Waste | Entered Factory 6795 | -7/Factory | Accompanied by 18 allies 6813 | -7/Factory | Discovered new exit (range 15) 7048 | -7/Factory | Entered Lower Caves 7048 | -7/Lower Caves | Accompanied by 14 allies 7547 | -7/Lower Caves | Learned Factory garrison access intel 7578 | -7/Lower Caves | Encountered a Warlord checkpoint 7797 | -7/Lower Caves | Spotted B-75 Beast 7811 | -7/Lower Caves | Allies destroyed B-75 Beast 8041 | -7/Lower Caves | Attracted the attention of an 0b10 outpost 8045 | -7/Lower Caves | Discovered new exit (range 8) 8435 | -7/Lower Caves | Entered another Lower Caves area 8435 | -7/Lower Caves | Accompanied by 11 allies 8453 | -7/Lower Caves | Discovered new exit (range 8) 8639 | -7/Lower Caves | Spotted B-75 Beast 8655 | -7/Lower Caves | Allies destroyed B-75 Beast 9014 | -7/Lower Caves | Build established: Mutant 9217 | -7/Lower Caves | Discovered new exit (range 8) 9275 | -7/Lower Caves | Attracted the attention of an 0b10 outpost 9312 | -7/Lower Caves | Destroyed 8 combat bots 9434 | -7/Lower Caves | Entered Data Miner 9434 | -7/Data Miner | Accompanied by 1 ally 9434 | -7/Data Miner | Discovered new exit (range 6) 9481 | -7/Data Miner | Met Data Miner 9559 | -7/Data Miner | Learned location of Section 7 (-3) 9559 | -7/Data Miner | Acquired the access code to Warlord's prototype stash 9604 | -7/Data Miner | Received God Mode back door access code from Data Miner 9662 | -7/Data Miner | Entered Proximity Caves 9662 | -6/Proximity Caves | Accompanied by 1 ally 9917 | -6/Proximity Caves | Spotted B-75 Beast 9919 | -6/Proximity Caves | Escorted by Enhanced Grunt 9942 | -6/Proximity Caves | Allies destroyed B-75 Beast 10259 | -6/Proximity Caves | Build established: Derelict-Mutant 10639 | -6/Proximity Caves | Discovered new exit (range 6) 11242 | -6/Proximity Caves | Build established: Derelict-Tank 11340 | -6/Proximity Caves | Attracted the attention of an 0b10 outpost 11866 | -6/Proximity Caves | Build established: Scavenger-Mutant 12093 | -6/Proximity Caves | Entered Factory 12093 | -6/Factory | Evolved 2 slots: Propulsion x1, Utility x1 12094 | -6/Factory | Identified exit to Lower Caves 12095 | -6/Factory | Loaded intel: 4 garrison access locations 12391 | -6/Factory | Lost 5 parts (1n2u2w) 12872 | -6/Factory | Incoming investigation squad redirected 12892 | -6/Factory | Build established: Mutant 13093 | -6/Factory | Lost 4 parts (1n1u2w) 13240 | -6/Factory | Incoming investigation squad redirected 13264 | -6/Factory | Build established: Scavenger-Mutant 13323 | -6/Factory | Garrison activated, responded to threat 13375 | -6/Factory | Lost 3 parts (3u) 13473 | -6/Factory | Garrison activated, responded to threat 13800 | -6/Factory | Discovered new exit (range 5) 13906 | -6/Factory | Garrison activated, responded to threat 13925 | -6/Factory | Incoming assault squad redirected 13933 | -6/Factory | Lost 4 parts (2n1u1w) 13965 | -6/Factory | Released all parts (4) 13992 | -6/Factory | Lost 3 parts (1n2w) 14543 | -6/Factory | First assault squad dispatched 14916 | -6/Factory | Incoming assault squad redirected 14919 | -6/Factory | Incoming assault squad redirected 14935 | -6/Factory | Lost 4 parts (3u1w) 15100 | -6/Factory | Build established: Mutant 15124 | -6/Factory | Incoming investigation squad redirected 15180 | -6/Factory | Incoming investigation squad redirected 15267 | -6/Factory | Incoming assault squad redirected 15306 | -6/Factory | Lost 6 parts (1p2n2u1w) 15387 | -6/Factory | Core integrity fell below 50% 15440 | -6/Factory | Lost 6 parts (5u1w) 15682 | -6/Factory | Incoming investigation squad redirected 15766 | -6/Factory | Incoming assault squad redirected 15898 | -6/Factory | Build established: Scavenger-Gunner 15899 | -6/Factory | Incoming investigation squad redirected 15970 | -6/Factory | Incoming assault squad redirected 16197 | -6/Factory | Spotted B-75 Beast 16258 | -6/Factory | Discovered new exit (range 9) 16265 | -6/Factory | Identified exit to Extension 16266 | -6/Factory | Entered Extension 16483 | -6/Extension | Core integrity fell below 20% 16494 | -6/Extension | Rescued A7 16535 | -6/Extension | Energy Cycler disabled 16535 | -6/Extension | Rescued a captive Derelict 16536 | -6/Extension | Rescued a captive Derelict 16537 | -6/Extension | Rescued a captive Derelict 16537 | -6/Extension | Rescued a captive Derelict 16537 | -6/Extension | Rescued a captive Derelict 16538 | -6/Extension | Rescued a captive Derelict 16561 | -6/Extension | Rescued a captive Derelict 16616 | -6/Extension | First assault squad dispatched 16632 | -6/Extension | Incoming assault squad redirected 16688 | -6/Extension | Spotted B-75 Beast 16697 | -6/Extension | Spotted B-75 Beast 16700 | -6/Extension | Discovered new exit (range 17) 16717 | -6/Extension | Incoming assault squad redirected 16718 | -6/Extension | Identified exit to Factory 16719 | -6/Extension | Entered Factory 16719 | -5/Factory | Evolved 2 slots: Utility x2 16748 | -5/Factory | Lost 3 parts (1u2w) 17037 | -5/Factory | Fabricated Lgt. Regenerative Plating? 17159 | -5/Factory | Incoming investigation squad redirected 17319 | -5/Factory | First assault squad dispatched 17380 | -5/Factory | Incoming assault squad redirected 17524 | -5/Factory | Lost 6 parts (1p1n2u2w) 17540 | -5/Factory | Destroyed 8 combat bots 17550 | -5/Factory | Spotted B-75 Beast 17570 | -5/Factory | Incoming investigation squad redirected 17758 | -5/Factory | Lost 3 parts (1n2w) 17870 | -5/Factory | Core integrity fell below 50% 17903 | -5/Factory | Lost 3 parts (2n1w) 18187 | -5/Factory | Core integrity fell below 20% 18228 | -5/Factory | Lost 7 parts (3n1u3w) 18272 | -5/Factory | Incoming assault squad redirected 18303 | -5/Factory | Destroyed by P-70 Sage with Tesla Rifle Last Messages --------------- 18280_ Carbon-fiber Leg severed. 18280_ Flexi-carbon Leg severed. 18280_ Carbon-fiber Leg severed. 18281_ Triggered Blade Trap. 18281_ Massive razor-sharp blades shoot up from within the floor. 18281_ Particle Charger severed. 18281_ Hvy. Plasma Cannon severed. 18281_ Carbon-fiber Leg severed. 18283_ Acquired Flexi-carbon Leg. 18285_ U-05 Engineer lays Concrete. 18287_ Acquired Carbon-fiber Leg. 18290_ Acquired Hvy. Plasma Cannon. 18291_ System corrupted: Hvy. Plasma Cannon rejected. 18291_ Flexi-carbon Leg destroyed. 18294_ Mic. Fission Core destroyed. 18295_ Acquired Particle Charger. 18298_ Acquired Carbon-fiber Leg. 18300_ Door malfunctions. 18301_ Acquired Hvy. Plasma Cannon. 18303_ Carbon-fiber Leg destroyed. Map ----- +----------------------------------------------------+ | *[% """ """?""" "" | | % =[[ """ """ ????"" | | ###+####################+### """ """ """?"" | | # % #????## %% %# | | ####### #?????# !! # """ """ """??" | | ??????# % % #?????# # """ """ """??? | | ??????# #?????# # """ """ """ "" | | ??????# % #?????# # | | ??????# % % #?????# # | | ??????# #?????# # #####+###?? | | ??????#% #?????############# #?????????? | | ###???# #??????????# #?????????? | | %##???# #??????????# ###???????? | | ###### #??????????# +???????? | | + + %#??????????# ###??????## | | ###### #??????????# #????????# | | =#????# #??????????# ######+###??????# | | #????# #??????????# #[ #??????# | | #????# #??????????# # """ #??????# | | #????# #????????? + + """ #??????# | | #????# #? "?????? # # """ #??????# | | #???###########? ""??????# # #??????# | | #????? ##????????"""?????# # ! """ #??????# | | #?????#???????????? ????# # """ #??????# | | ######################/#### # """ #??????# | | @ # #??????# | | % ##########??????# | | "" #???????????????## | | "" p ^ #????????????????? | | "" p #????????????????? | | ####+############+##########????????????????? | | #??? ?????????????????????????????????????? | | +????" ????????????????##########?########## | | # ???? ???????????????# ### | | + ??? #??????????????# + | | ##? ???? #??????????????# ### "" | | #?? ??????#??????????????# """" #?# " | | # #???"????????????????????# """" ### "F! | | # #????????????????????????# """" # "" " | | # ????????????????????????# """" # " | | ?#####???????????????????????# """" # " | | ?????????????????????????????# """" + " | | ?????????????????????????????# # | | ?????????????????????????????# ||| # | | ?????????????????????????????# ! || # | | ?????????????????????????????# || ####+####### | | ?????????????????????????????# # #? | | ?????????????????????????????# # #? | | ?????????????????????????????# # #? | | ?????????????????????????????# # #? | +----------------------------------------------------+ Best States ------------- Heat Dissipation 75 Energy Generation 23 Energy Capacity 500 Matter Stores 300 Matter Capacity 300 Sight Range 18 Robot Scan Range 16 Terrain Scan Range 16 Terrain Scan Density 10 EM Shielding 2 Corruption Containment 8 Armor Coverage 2200 Resistance: KI 30 Resistance: TH 10 Resistance: EM 90 Propulsion Shielding 66 Evasion (%) 55 Targeting Accuracy 5 Target Analysis 9 Recoil Reduction 4 Particle Charging 15 Kinecelleration 30 Offensive Hacking 20 Defensive Hacking 10 Item Schematics ----------------- Hcp. Storage Unit | -9/Materials | Scanalyzed Lgt. Treads | -9/Materials | Scanalyzed Hacking Suite | -9/Materials | Scanalyzed Lgt. Armor Plating | -9/Materials | Scanalyzed Weapon Shielding | -9/Materials | Scanalyzed Core Shielding | -9/Materials | Scanalyzed Concussive RPG | -9/Materials | Scanalyzed Cmb. Airjet | -8/Materials | Scanalyzed Combat Drone Bay | -7/Data Miner | Free Lgt. Regenerative Plating | -7/Data Miner | Free Cld. Cesium-ion Thruster | -7/Data Miner | Free Gravity Neutralizer | -7/Data Miner | Free Cld. Plasma Cannon | -7/Data Miner | Free Nuclear Pulse Array | -7/Data Miner | Free Imp. Focal Shield | -7/Data Miner | Free Tesla Rifle | -7/Data Miner | Free Imp. Coolant Injector | -7/Data Miner | Free Imp. Shock Absorption System | -7/Data Miner | Free Imp. Antigrav System | -7/Data Miner | Free Hyp. Coil Gun | -6/Factory | Hacked Robot Schematics ------------------ G-47 Trooper | -7/Data Miner | Free S-27 Virus | -7/Data Miner | Free B-48 Gladiator | -7/Data Miner | Free L-41 Fighter | -7/Data Miner | Free Fabricated ------------ Lgt. Regenerative Plating | x1 | -5/Factory Alien Tech Used ----------------- None Achievements -------------- None Challenges ------------ None Game ------ Seed BiocellTiamatRedistributor Manual? 0 Play Time 02:27:28 Cumulative 122.1 hours Start 2022.09.19 @ 21:12:58 End 2022.09.19 @ 23:48:36 Sessions 1 Manual Loads 0 Difficulty Rogue Special Mode None Game No. 92 Rogue 89 Adventurer 3 Explorer 0 Win Type - Total 1 Types 1/0/0/0/0/0/0/0/0 Lore% 52 Gallery% 51 Achievement% 46 Wizard Run 0 Options --------- ASCII 0 Keyboard 0 Movement Numpad Keybinds 0 Fullscreen 1 Font 18/SmallcapsGlow Map View 76x50 Tactical HUD 1 Map Filters NONE Filters NONE Steam 1 RUN: 6548be2d-3c4a-4690-ba56-1e35bc63ea8f